{"text_format":"1","workbook":"xlsx","n_sheets":5,"sheets":["Summary","Comments","Data Analysis","Data","%DataProcessing%"],"not_rendered":{"charts":7,"images":0,"macros":1,"external_links":1,"defined_names":39,"comments":0,"pivot_tables":0},"unopened":[],"bounds":{"document_bytes":16777216,"sheet_cells":100000,"rows_first":2000,"rows_last":500,"rows_between":2000,"halvings":0,"cell_chars":16384,"cell_head_chars":4096},"cells_cut":0,"cells_raw":0,"read":"whole","date_system":"1900"}

{"sheet":"Summary","index":0,"n_rows":14,"n_cols":3,"rows_kept":14,"cut":false,"hidden":false,"merged":[]}
[]
[]
[null,"Data"]
[null,"Felt they had a positive experience",{"$f":"SUM('%DataProcessing%'!C2:C3)/SUM('%DataProcessing%'!C2:C6)","v":0}]
[null,"Found the classes interesting",{"$f":"SUM('%DataProcessing%'!C12:C13)/SUM('%DataProcessing%'!C9:C13)","v":0}]
[null,"Learned a new skill",{"$f":"'%DataProcessing%'!C18","v":0.7142857142857143}]
[null,"Felt the class met their expectations",{"$f":"'%DataProcessing%'!C23","v":0.8571428571428571}]
[null,"Got the classes they wanted",{"$f":"'%DataProcessing%'!C28","v":0.5714285714285714}]
[null,"Experienced swearing or bad language",{"$f":"'%DataProcessing%'!C33","v":0.7142857142857143}]
[null,"Said people were made fun of",{"$f":"'%DataProcessing%'!C38","v":0.8571428571428571}]
[null,"Witnessed bullying",{"$f":"'%DataProcessing%'!C43","v":0.5714285714285714}]
[null,"Felt their instructors were kind and respectful",{"$f":"'%DataProcessing%'!C48","v":0.8571428571428571}]
[null,"Took Summer Rec classes before",{"$f":"'%DataProcessing%'!C53","v":0.7142857142857143}]
[null,"Would like to participate in classes not offered",{"$f":"'%DataProcessing%'!C58","v":0.7142857142857143}]

{"sheet":"Comments","index":1,"n_rows":8,"n_cols":9,"rows_kept":8,"cut":false,"hidden":false,"merged":[]}
["What specific things did you like or not like about your class?",null,"If you answered \"yes\" to the previous question, please describe those classes.",null,"Any additional comments?",null,"If you didn't get the class you wanted, which class did you really want?",null,"If you could pick any three, which classes would you take next summer?"]
["Boom",null,"Boom Bam",null,"HaBam Boom",null,"Boom",null,"Archery, Art"]
["Bam Baby!",null,null,null,"KaCha!",null,"Seventeen",null,"Iddy Biddy Ball, Jewelry Making, Kids Cooking"]
["Paragraph Text",null,"Paragraph Text",null,"Paragraph Text",null,"Class",null,"Archery, Art, Arts and Crafts"]
["I want Oliver's hot bod.",null,"Oliver's hot bod",null,"Oliver is such a stud muffin.",null,"More time w oliver",null,"Arts and Crafts, Babysitting, Kids Kamp, Playschool, Tennis"]
["Oliver's sexy manness",null,"Body building with the terminator",null,"Chinese chicken, it don't stop kickin'",null,"More of Oliver. Or Sarah Jessica Parker. Probably Oliver",null,"Babysitting, Beginning Dance - Jazz, Bowling"]
["scooby dooby",null,"manapua",null,"wakawakwaka",null,"bataboombatabing",null,"Arts and Crafts, Bowling, Boy Scout Merit Badge"]
["oliver's high kicks sucked",null,null,null,"they should open up oliver's old taekwondo doujo",null,"oliver's taekwondo class that wasn't accessible for handicapped children",null,"Art, Arts and Crafts, Babysitting"]

{"sheet":"Data Analysis","index":2,"n_rows":8,"n_cols":19,"rows_kept":8,"cut":false,"hidden":false,"merged":[]}
["Blank","Timestamp","1. Which class did you participate it?","2. Which session was the class?","3. How did you like the class?","4. Was the class interesting?","6. Did you learn a new skill?","7. Overall, did the class meet your expectations?","8. Did you get the class you wanted?","9. Was there any swearing or bad language during class?","10. Did you feel that anybody was made fun of during class?","11. Did you feel that there was any bullying during class?","12. Was your teacher/instructor kind and respectful to you?","13. Have you participated in the Centerville Summer Recreation Program before?","16. Would you like to participate in any classes that weren't offered this year?","18. What is your gender?","19. What is your ethnicity/race?","14. How many classes did you take before?","17. What is your age?"]
[".","2011-12-09T17:05:47","Archery",null,"I hated it","No","Yes, I learned a new skill","Yes","Yes","No","Yes","No","Yes","Yes","Yes","Male","White",2,9]
[".","2011-12-09T17:08:39","Digital Photography",null,"I didn't like it","Yes","Yes, I learned a new skill","No","No","Yes","Yes","No","Yes","No","Yes","Male","White","--",10]
[".","2011-12-09T18:17:46","Archery",null,"I hated it","Not at all","Yes, I learned a new skill","Yes","Yes","Yes","Yes","Yes","Yes","Yes","Yes","Male","White",1,10]
[".","2011-12-12T14:37:14","Basketball","Session 2","I didn't like it","Yes","Yes, I learned a new skill","Yes","Yes","Yes","Yes","Yes","Yes","Yes","Yes","Female","American Indian or Alaskan Native",13,9]
[".","2011-12-12T14:40:47","GPP Fitness for Kids","Session 2","I hated it","Not at all","Yes, I learned a new skill","Yes","No","Yes","Yes","Yes","Yes","No","Yes","Female","Asian",3,12]
[".","2011-12-12T14:44:02","Arts and Crafts","Session 2","I hated it","No","No, I already knew how to do it","Yes","No","Yes","No","No","No","Yes","No","Male","White",20,9]
[".","2011-12-12T14:47:46","Bowling","Session 2","I hated it","Not at all","No, I already knew how to do it","Yes","Yes","No","Yes","Yes","Yes","Yes","No","Male","Asian",3,14]

{"sheet":"Data","index":3,"n_rows":0,"n_cols":0,"rows_kept":0,"cut":false,"hidden":false,"merged":[]}

{"sheet":"%DataProcessing%","index":4,"n_rows":74,"n_cols":5,"rows_kept":74,"cut":false,"hidden":false,"merged":[]}
["3. How did you like the class","3. How did you like the class?"]
[null,"I loved it"]
[null,"I liked it"]
[null,"It was ok"]
[null,"I didn't like it",2]
[null,"I hated it",5]
[]
[6,"4. Was the class interesting?",null,null,"https://docs.google.com/spreadsheet/pub?hl=en_US&hl=en_US&key=0AkwWK3bRe1YHdEtqdEVOSUJURExrTWlaQ2ZhSXFTN1E&output=html"]
[null,"Not at all",3]
[null,"No",2]
[null,"Some of it Yes, some of it No",2]
[null,"Yes"]
[null,"A lot"]
[]
[7,"6. Did you learn a new skill?"]
[null,"No, I already knew how to do it",2]
[null,"Yes, I learned a new skill",5]
[null,null,{"$f":"C17/SUM(C16:C17)","v":0.7142857142857143}]
[]
[8,"7. Overall, did the class meet your expectations?"]
[null,"Yes",6]
[null,"No",1]
[null,null,{"$f":"C21/SUM(C21:C22)","v":0.8571428571428571}]
[]
[9,"8. Did you get the class you wanted?"]
[null,"Yes",4]
[null,"No",3]
[null,null,{"$f":"C26/SUM(C26:C27)","v":0.5714285714285714}]
[]
[10,"9. Was there any swearing or bad language during class?"]
[null,"Yes",5]
[null,"No",2]
[null,null,{"$f":"C31/SUM(C31:C32)","v":0.7142857142857143}]
[]
[11,"10. Did you feel that anybody was made fun of during class?"]
[null,"Yes",6]
[null,"No",1]
[null,null,{"$f":"C36/SUM(C36:C37)","v":0.8571428571428571}]
[]
[12,"11. Did you feel that there was any bullying during class?"]
[null,"Yes",4]
[null,"No",3]
[null,null,{"$f":"C41/SUM(C41:C42)","v":0.5714285714285714}]
[]
[13,"12. Was your teacher/instructor kind and respectful to you?"]
[null,"Yes",6]
[null,"No",1]
[null,null,{"$f":"C46/SUM(C46:C47)","v":0.8571428571428571}]
[]
[14,"13. Have you participated in the Centerville Summer Recreation Program before?"]
[null,"Yes",5]
[null,"No",2]
[null,null,{"$f":"C51/SUM(C51:C52)","v":0.7142857142857143}]
[]
[16,"16. Would you like to participate in any classes that weren't offered this year?"]
[null,"Yes",5]
[null,"No",2]
[null,null,{"$f":"C56/SUM(C56:C57)","v":0.7142857142857143}]
[]
[17,"18. What is your gender?"]
[null,"Male"]
[null,"Female",7]
[]
[18,"19. What is your ethnicity/race?"]
[null,"White",4]
[null,"Black"]
[null,"Hispanic"]
[null,"American Indian or Alaskan Native",1]
[null,"Native Hawaiian or Pacific Islander"]
[null,"Asian",2]
[null,"Other"]
[null,"Don't know"]
[]
[15,"14. How many classes did you take before?"]